[Event "Fagernes Chess Open 2025"]
[Site "Fagernes"]
[Date "2025.04.17"]
[Round "6.1"]
[White "Stai, Sondre"]
[Black "Ali, Karim"]
[Result "1/2-1/2"]
[Annotator "NA RC"]
[ECO "D00"]
[WhiteElo "1786"]
[BlackElo "1876"]
[PlyCount "63"]
[EventDate "2025.04.12"]
[EventCountry "NOR"]
[SourceTitle "playchess.com"]
[Source "ChessBase"]
[SourceQuality "1"]
[TimeControl "40/6000+30:2400+30"]

1. d4 {[%emt 0:00:03]} Nf6 {[%emt 0:04:27]} 2. Nc3 {[%emt 0:00:09]} d5 {[%emt 0:00:19]} 3. Bf4 {[%emt 0:00:06]} c5 {[%emt 0:00:19]} 4. e3 {[%emt 0:01:20]} cxd4 {[%emt 0:00:05]} 5. Qxd4 {[%emt 0:04:45]} a6 {[%emt 0:03:26]} 6. Nf3 {[%emt 0:03:37]} Nc6 {[%emt 0:01:02]} 7. Qd2 {[%emt 0:00:51]} e6 {[%emt 0:05:07]} 8. Bd3 {[%emt 0:04:26]} Nb4 {[%emt 0:04:11]} 9. O-O {[%emt 0:12:13]} Nxd3 {[%emt 0:00:22]} 10. cxd3 {[%emt 0:01:18]} Bd7 {[%emt 0:03:22]} 11. Ne5 {[%emt 0:02:30]} Be7 {[%emt 0:02:54]} 12. h3 {[%emt 0:10:05]} O-O {[%emt 0:00:38]} 13. Rac1 {[%emt 0:00:31]} Ne8 {[%emt 0:04:31]} 14. Rfd1 {[%emt 0:10:28]} f6 {[%emt 0:00:50]} 15. Nxd7 {[%emt 0:00:07]} Qxd7 {[%emt 0:00:08]} 16. d4 {[%emt 0:00:15]} Bd6 {[%emt 0:01:41]} 17. e4 {[%emt 0:09:53]} dxe4 {[%emt 0:08:44]} 18. Nxe4 {[%emt 0:00:31]} Bxf4 {[%emt 0:00:05]} 19. Qxf4 {[%emt 0:00:11]} b6 {[%emt 0:00:04]} 20. Rd2 {[%emt 0:08:05]} Rc8 {[%emt 0:01:03]} 21. Rxc8 {[%emt 0:05:40]} Qxc8 {[%emt 0:00:15]} 22. Qe3 {[%emt 0:00:22]} h6 {[%emt 0:11:53]} 23. Qb3 {[%emt 0:01:21]} f5 {[%emt 0:06:27]} 24. Nc3 {[%emt 0:02:28]} b5 {[%emt 0:07:43]} 25. d5 {[%emt 0:02:02]} exd5 {[%emt 0:03:21]} 26. Nxd5 {[%emt 0:03:33]} Kh7 {[%emt 0:00:58]} 27. Qd3 {[%emt 0:01:25]} Rf7 {[%emt 0:11:34]} 28. Ne3 {[%emt 0:02:56]} g6 {[%emt 0:03:01]} 29. Qd5 {[%emt 0:02:33]} Rc7 {[%emt 0:08:52]} 30. Qe5 {[%emt 0:05:11]} Rc1+ {[%emt 0:06:41]} 31. Kh2 {[%emt 0:00:06]} Rc7 {[%emt 0:00:01]} 32. Kg1 {[%emt 0:00:54]} 1/2-1/2

[Event "Fagernes Chess Open 2025"]
[Site "Fagernes"]
[Date "2025.04.17"]
[Round "6.2"]
[White "Sivaparan, Isai"]
[Black "Hansen, Thobias Gotaas"]
[Result "1-0"]
[Annotator "NA RC"]
[ECO "C50"]
[WhiteElo "1944"]
[BlackElo "1805"]
[PlyCount "61"]
[EventDate "2025.04.12"]
[EventCountry "NOR"]
[SourceTitle "playchess.com"]
[Source "ChessBase"]
[SourceQuality "1"]
[TimeControl "40/6000+30:2400+30"]

1. e4 {[%emt 0:00:08]} e5 {[%emt 0:00:15]} 2. Nf3 {[%emt 0:00:34]} Nc6 {[%emt 0:00:19]} 3. Bc4 {[%emt 0:00:14]} Bc5 {[%emt 0:01:45]} 4. O-O {[%emt 0:00:23]} Nf6 {[%emt 0:00:56]} 5. d3 {[%emt 0:00:41]} a5 {[%emt 0:04:14]} 6. c3 {[%emt 0:05:50]} d6 {[%emt 0:00:24]} 7. Re1 {[%emt 0:03:43]} O-O {[%emt 0:05:44]} 8. h3 {[%emt 0:01:26]} Ne7 {[%emt 0:07:50]} 9. Nbd2 {[%emt 0:04:23]} Ng6 {[%emt 0:01:57]} 10. Nf1 {[%emt 0:06:06]} c6 {[%emt 0:02:12]} 11. Bb3 {[%emt 0:05:50]} Be6 {[%emt 0:08:53]} 12. Bxe6 {[%emt 0:11:10]} fxe6 {[%emt 0:00:13]} 13. d4 {[%emt 0:01:20]} Ba7 {[%emt 0:16:39]} 14. Ng3 {[%emt 0:04:27]} Qe7 {[%emt 0:08:19]} 15. Qc2 {[%emt 0:04:45]} Nd7 {[%emt 0:10:27]} 16. Qb3 {[%emt 0:08:29]} Rab8 {[%emt 0:07:47]} 17. Nf5 {[%emt 0:02:10]} Qd8 {[%emt 0:11:35]} 18. Qxe6+ {[%emt 0:02:21]} Kh8 {[%emt 0:01:38]} 19. Nxd6 {[%emt 0:02:05]} Qf6 {[%emt 0:01:32]} 20. Qxd7 {[%emt 0:05:30]} Rbd8 {[%emt 0:04:38]} 21. Qxb7 {[%emt 0:02:35]} Qxd6 {[%emt 0:02:29]} 22. Qxa7 {[%emt 0:12:32]} Rxf3 {[%emt 0:01:00]} 23. gxf3 {[%emt 0:03:57]} Nh4 {[%emt 0:02:35]} 24. Re3 {[%emt 0:02:25]} Qg6+ {[%emt 0:06:10]} 25. Kf1 {[%emt 0:00:23]} Qg2+ {[%emt 0:01:06]} 26. Ke2 {[%emt 0:00:19]} Qg1 {[%emt 0:01:18]} 27. Qe7 {[%emt 0:00:31]} g5 {[%emt 0:01:29]} 28. Qxd8+ {[%emt 0:00:15]} Kg7 {[%emt 0:00:12]} 29. Qe7+ {[%emt 0:01:11]} Kh6 {[%emt 0:00:35]} 30. Qf6+ {[%emt 0:01:12]} Ng6 {[%emt 0:00:23]} 31. h4 {[%emt 0:00:34]} 1-0

[Event "Fagernes Chess Open 2025"]
[Site "Fagernes"]
[Date "2025.04.17"]
[Round "6.3"]
[White "Andersen, Guttorm"]
[Black "Solbu, August"]
[Result "1-0"]
[Annotator "NA RC"]
[ECO "D37"]
[WhiteElo "1842"]
[BlackElo "1887"]
[PlyCount "116"]
[EventDate "2025.04.12"]
[EventCountry "NOR"]
[SourceTitle "playchess.com"]
[Source "ChessBase"]
[SourceQuality "1"]
[TimeControl "40/6000+30:2400+30"]

1. d4 {[%emt 0:01:44]} d5 {[%emt 0:00:08]} 2. c4 {[%emt 0:00:28]} e6 {[%emt 0:00:11]} 3. Nc3 {[%emt 0:00:12]} Nf6 {[%emt 0:00:04]} 4. e3 {[%emt 0:03:42]} Be7 {[%emt 0:00:06]} 5. Bd3 {[%emt 0:00:04]} O-O {[%emt 0:00:25]} 6. Nf3 {[%emt 0:01:43]} Nbd7 {[%emt 0:01:28]} 7. O-O {[%emt 0:04:10]} dxc4 {[%emt 0:01:17]} 8. Bxc4 {[%emt 0:00:09]} c5 {[%emt 0:00:14]} 9. Qe2 {[%emt 0:06:21]} a6 {[%emt 0:01:39]} 10. a4 {[%emt 0:05:02]} cxd4 {[%emt 0:00:47]} 11. Nxd4 {[%emt 0:01:57]} Bc5 {[%emt 0:09:32]} 12. Rd1 {[%emt 0:06:47]} Qe7 {[%emt 0:03:20]} 13. e4 {[%emt 0:04:35]} h6 {[%emt 0:29:30]} 14. h3 {[%emt 0:09:28]} Ne5 {[%emt 0:04:07]} 15. Bb3 {[%emt 0:15:23]} b6 {[%emt 0:06:56]} 16. Be3 {[%emt 0:06:13]} Bb7 {[%emt 0:02:20]} 17. Bc2 {[%emt 0:03:28]} Ng6 {[%emt 0:21:01]} 18. f4 {[%emt 0:05:18]} Bxd4 {[%emt 0:05:16]} 19. Bxd4 {[%emt 0:01:46]} Nxf4 {[%emt 0:00:12]} 20. Qf2 {[%emt 0:00:10]} Ng6 {[%emt 0:03:27]} 21. Bxb6 {[%emt 0:03:38]} Rac8 {[%emt 0:01:06]} 22. Bd4 {[%emt 0:05:24]} e5 {[%emt 0:02:04]} 23. Be3 {[%emt 0:00:06]} Qb4 {[%emt 0:01:36]} 24. Nd5 {[%emt 0:12:04]} Bxd5 {[%emt 0:00:37]} 25. exd5 {[%emt 0:01:31]} Qxb2 {[%emt 0:01:25]} 26. Bf5 {[%emt 0:03:19]} Qxf2+ {[%emt 0:01:11]} 27. Kxf2 {[%emt 0:00:13]} Rcd8 {[%emt 0:00:47]} 28. d6 {[%emt 0:00:23]} e4 {[%emt 0:03:37]} 29. Bb6 {[%emt 0:00:49]} Rb8 {[%emt 0:01:04]} 30. a5 {[%emt 0:01:42]} Nh4 {[%emt 0:01:13]} 31. d7 {[%emt 0:01:49]} Nxf5 {[%emt 0:00:43]} 32. d8=Q {[%emt 0:00:29]} Rfxd8 {[%emt 0:00:00]} 33. Rxd8+ {[%emt 0:00:55]} Rxd8 {[%emt 0:00:00]} 34. Bxd8 {[%emt 0:00:21]} Nd5 {[%emt 0:00:25]} 35. Bb6 {[%emt 0:01:19]} g6 {[%emt 0:08:28]} 36. g4 {[%emt 0:00:31]} Ng7 {[%emt 0:01:15]} 37. Rd1 {[%emt 0:01:21]} Nf4 {[%emt 0:00:12]} 38. Rd8+ {[%emt 0:00:34]} Kh7 {[%emt 0:00:07]} 39. Ke3 {[%emt 0:02:01]} Nge6 {[%emt 0:00:06]} 40. Ra8 {[%emt 0:01:26]} f5 {[%emt 0:00:07]} 41. Ra7+ {[%emt 0:40:40]} Kg8 {[%emt 0:00:02]} 42. gxf5 {[%emt 0:01:10]} gxf5 {[%emt 0:40:00]} 43. Rxa6 {[%emt 0:00:00]} Nd5+ {[%emt 0:00:00]} 44. Kf2 {[%emt 0:00:00]} f4 {[%emt 0:00:00]} 45. Ra8+ {[%emt 0:00:00]} Kf7 {[%emt 0:00:00]} 46. h4 {[%emt 0:00:00]} e3+ {[%emt 0:00:00]} 47. Kf3 {[%emt 0:00:00]} Nxb6 {[%emt 0:00:00]} 48. axb6 {[%emt 0:00:00]} Nd4+ {[%emt 0:00:00]} 49. Kxf4 {[%emt 0:00:00]} e2 {[%emt 0:00:00]} 50. Ra1 {[%emt 0:00:00]} Nc2 {[%emt 0:00:00]} 51. Rc1 {[%emt 0:00:00]} e1=N {[%emt 0:00:00]} 52. Rxe1 {[%emt 0:00:00]} Nxe1 {[%emt 0:00:00]} 53. b7 {[%emt 0:00:00]} Nd3+ {[%emt 0:00:00]} 54. Kf5 {[%emt 0:00:00]} Nc5 {[%emt 0:00:00]} 55. b8=Q {[%emt 0:00:00]} Nd7 {[%emt 0:00:00]} 56. Qd8 {[%emt 0:00:00]} Nf8 {[%emt 0:00:00]} 57. Qc7+ {[%emt 0:00:00]} Ke8 {[%emt 0:00:59]} 58. Qg7 {[%emt 0:00:00]} Nd7 {[%emt 0:00:00]} 1-0

[Event "Fagernes Chess Open 2025"]
[Site "Fagernes"]
[Date "2025.04.17"]
[Round "6.4"]
[White "Kopperud, Vidar Aleksander"]
[Black "Neukamm, Christian"]
[Result "1/2-1/2"]
[Annotator "NA RC"]
[ECO "D28"]
[WhiteElo "1778"]
[BlackElo "1776"]
[PlyCount "44"]
[EventDate "2025.04.12"]
[EventCountry "NOR"]
[SourceTitle "playchess.com"]
[Source "ChessBase"]
[SourceQuality "1"]
[TimeControl "40/6000+30:2400+30"]

1. d4 {[%emt 0:00:03]} d5 {[%emt 0:30:38]} 2. c4 {[%emt 0:00:30]} dxc4 {[%emt 0:00:30]} 3. Nf3 {[%emt 0:00:30]} Nf6 {[%emt 0:00:30]} 4. e3 {[%emt 0:00:30]} e6 {[%emt 0:00:30]} 5. Bxc4 {[%emt 0:00:30]} Be7 {[%emt 0:00:30]} 6. O-O {[%emt 0:00:30]} O-O {[%emt 0:00:30]} 7. Nc3 {[%emt 0:00:30]} c5 {[%emt 0:00:30]} 8. Qe2 {[%emt 0:00:30]} Nc6 {[%emt 0:00:30]} 9. Rd1 {[%emt 0:00:30]} Qc7 {[%emt 0:00:30]} 10. dxc5 {[%emt 0:00:30]} Bxc5 {[%emt 0:00:30]} 11. a3 {[%emt 0:00:30]} a6 {[%emt 0:00:30]} 12. b4 {[%emt 0:00:30]} Be7 {[%emt 0:00:30]} 13. Bb2 {[%emt 0:00:30]} b5 {[%emt 0:00:30]} 14. Bb3 {[%emt 0:00:30]} Bb7 {[%emt 0:00:30]} 15. Rac1 {[%emt 0:00:30]} Rad8 {[%emt 0:00:30]} 16. Nd2 {[%emt 0:00:30]} Qb8 17. Nce4 {[%emt 0:47:46]} Ne5 {[%emt 0:02:21]} 18. Nc5 {[%emt 0:07:18]} Bxc5 {[%emt 0:09:51]} 19. Rxc5 {[%emt 0:09:35]} Nd3 {[%emt 0:02:56]} 20. Bxf6 {[%emt 0:00:00]} gxf6 {[%emt 0:00:02]} 21. Qg4+ {[%emt 0:07:26]} Kh8 {[%emt 0:00:07]} 22. Qh4 {[%emt 0:01:28]} Nxc5 {[%emt 0:07:55]} 1/2-1/2

[Event "Fagernes Chess Open 2025"]
[Site "Fagernes"]
[Date "2025.04.17"]
[Round "6.5"]
[White "Engkvist, Tomas"]
[Black "Vollheim, Daniel O"]
[Result "1-0"]
[Annotator "RC"]
[ECO "C02"]
[WhiteElo "1969"]
[BlackElo "1764"]
[PlyCount "103"]
[EventDate "2025.04.12"]
[EventCountry "NOR"]
[SourceTitle "playchess.com"]
[Source "ChessBase"]
[SourceQuality "1"]
[TimeControl "40/6000+30:2400+30"]

1. e4 {[%emt 0:00:01]} e6 {[%emt 0:00:06]} 2. d4 {[%emt 0:00:04]} d5 {[%emt 0:00:04]} 3. e5 {[%emt 0:00:02]} c5 {[%emt 0:00:06]} 4. c3 {[%emt 0:00:03]} Nc6 {[%emt 0:00:05]} 5. Nf3 {[%emt 0:00:04]} Bd7 {[%emt 0:00:19]} 6. Be2 {[%emt 0:00:05]} Qb6 {[%emt 0:01:19]} 7. O-O {[%emt 0:00:07]} Nge7 {[%emt 0:01:48]} 8. dxc5 {[%emt 0:03:29]} Qxc5 {[%emt 0:00:26]} 9. b4 {[%emt 0:00:35]} Qb6 {[%emt 0:00:35]} 10. Bf4 {[%emt 0:01:05]} Ng6 {[%emt 0:01:12]} 11. Bg3 {[%emt 0:00:05]} Be7 {[%emt 0:01:28]} 12. Nbd2 {[%emt 0:01:31]} O-O {[%emt 0:01:25]} 13. Bd3 {[%emt 0:00:24]} Rac8 {[%emt 0:05:25]} 14. Rc1 {[%emt 0:01:41]} Rfd8 {[%emt 0:10:27]} 15. a4 {[%emt 0:01:35]} a6 {[%emt 0:01:52]} 16. Nb3 {[%emt 0:01:48]} Qc7 {[%emt 0:16:17]} 17. b5 {[%emt 0:02:59]} axb5 {[%emt 0:02:07]} 18. axb5 {[%emt 0:00:19]} Na5 {[%emt 0:01:01]} 19. Nbd4 {[%emt 0:01:22]} Nc4 {[%emt 0:01:13]} 20. Qe2 {[%emt 0:00:32]} Qa5 {[%emt 0:02:20]} 21. h4 {[%emt 0:02:13]} Bxb5 {[%emt 0:04:04]} 22. Ra1 {[%emt 0:00:15]} Ba4 {[%emt 0:01:29]} 23. Rfb1 {[%emt 0:01:19]} b6 {[%emt 0:03:33]} 24. Ra2 {[%emt 0:05:55]} Na3 {[%emt 0:02:26]} 25. Rba1 {[%emt 0:00:38]} Qxc3 {[%emt 0:01:55]} 26. h5 {[%emt 0:01:24]} Nf8 {[%emt 0:00:56]} 27. Bh4 {[%emt 0:00:57]} Bxh4 {[%emt 0:01:03]} 28. Rxa3 {[%emt 0:00:20]} Qc5 {[%emt 0:09:55]} 29. Rxa4 {[%emt 0:01:13]} Be7 {[%emt 0:00:37]} 30. Ra7 {[%emt 0:00:22]} Nd7 {[%emt 0:02:48]} 31. Bb5 {[%emt 0:00:09]} Nb8 {[%emt 0:05:13]} 32. Qd3 {[%emt 0:00:41]} Qb4 {[%emt 0:02:06]} 33. Rb1 {[%emt 0:01:05]} Qc5 {[%emt 0:00:26]} 34. Nb3 {[%emt 0:00:22]} Qb4 {[%emt 0:00:46]} 35. Ra4 {[%emt 0:00:44]} Qc3 {[%emt 0:00:09]} 36. Qxc3 {[%emt 0:00:27]} Rxc3 {[%emt 0:00:06]} 37. Nfd4 {[%emt 0:01:02]} Rdc8 {[%emt 0:01:05]} 38. Ra8 {[%emt 0:00:14]} Rd8 {[%emt 0:01:00]} 39. Ra7 {[%emt 0:00:42]} Bc5 {[%emt 0:00:47]} 40. Ne2 {[%emt 0:00:05]} d4 {[%emt 0:00:56]} 41. Nxc3 {[%emt 0:40:17]} dxc3 {[%emt 0:40:05]} 42. Nxc5 {[%emt 0:00:31]} c2 {[%emt 0:00:21]} 43. Re1 {[%emt 0:00:03]} bxc5 {[%emt 0:00:19]} 44. Raa1 {[%emt 0:00:19]} h6 {[%emt 0:01:33]} 45. Rac1 {[%emt 0:00:10]} Rd2 {[%emt 0:00:05]} 46. Kf1 {[%emt 0:00:37]} Kf8 {[%emt 0:00:22]} 47. Ba4 {[%emt 0:00:07]} Na6 {[%emt 0:00:12]} 48. Re2 {[%emt 0:00:11]} Rd4 {[%emt 0:00:19]} 49. Bxc2 {[%emt 0:00:12]} Nb4 {[%emt 0:00:08]} 50. Bb3 {[%emt 0:00:12]} Rh4 {[%emt 0:00:43]} 51. Kg1 {[%emt 0:00:04]} Nd3 {[%emt 0:00:47]} 52. Rc3 {[%emt 0:00:16]} 1-0

[Event "Fagernes Chess Open 2025"]
[Site "Fagernes"]
[Date "2025.04.17"]
[Round "6.6"]
[White "Rynning, Rune Kleiven"]
[Black "Arulmaran, Abishan"]
[Result "0-1"]
[Annotator "NA RC"]
[ECO "A58"]
[WhiteElo "1776"]
[BlackElo "1858"]
[PlyCount "68"]
[EventDate "2025.04.12"]
[EventCountry "NOR"]
[SourceTitle "playchess.com"]
[Source "ChessBase"]
[SourceQuality "1"]
[TimeControl "40/6000+30:2400+30"]

1. d4 {[%emt 0:00:04]} Nf6 {[%emt 0:00:16]} 2. c4 {[%emt 0:00:06]} c5 {[%emt 0:00:14]} 3. d5 {[%emt 0:00:48]} b5 {[%emt 0:01:51]} 4. cxb5 {[%emt 0:00:13]} a6 {[%emt 0:00:09]} 5. Nc3 {[%emt 0:03:54]} axb5 {[%emt 0:01:34]} 6. Nxb5 {[%emt 0:00:44]} Ba6 {[%emt 0:01:33]} 7. Nc3 {[%emt 0:00:47]} g6 {[%emt 0:00:07]} 8. e3 {[%emt 0:02:38]} Bxf1 {[%emt 0:01:48]} 9. Kxf1 {[%emt 0:00:08]} Bg7 {[%emt 0:00:37]} 10. d6 {[%emt 0:04:16]} O-O {[%emt 0:00:32]} 11. e4 {[%emt 0:03:38]} exd6 {[%emt 0:03:41]} 12. Qxd6 {[%emt 0:01:08]} Qa5 {[%emt 0:01:12]} 13. Bg5 {[%emt 0:08:44]} Ra6 {[%emt 0:03:04]} 14. Qd2 {[%emt 0:00:39]} Re8 {[%emt 0:01:14]} 15. f3 {[%emt 0:01:17]} Nc6 {[%emt 0:04:06]} 16. Nge2 {[%emt 0:00:16]} Nd4 {[%emt 0:04:34]} 17. Nxd4 {[%emt 0:04:01]} cxd4 {[%emt 0:00:47]} 18. Nd5 {[%emt 0:01:04]} Qb5+ {[%emt 0:07:07]} 19. Kf2 {[%emt 0:02:01]} Nxd5 {[%emt 0:07:08]} 20. exd5 {[%emt 0:00:25]} Qxd5 {[%emt 0:04:53]} 21. Rhe1 {[%emt 0:19:18]} Rea8 {[%emt 0:05:04]} 22. a4 {[%emt 0:05:30]} d3 {[%emt 0:03:50]} 23. Ra3 {[%emt 0:02:19]} Qd4+ {[%emt 0:16:08]} 24. Be3 {[%emt 0:04:53]} Qh4+ {[%emt 0:07:07]} 25. Kg1 {[%emt 0:00:11]} Bxb2 {[%emt 0:02:08]} 26. Rxd3 {[%emt 0:02:37]} Rxa4 {[%emt 0:06:33]} 27. Bf2 {[%emt 0:03:43]} Qf6 {[%emt 0:01:00]} 28. Rb3 {[%emt 0:09:11]} Bd4 {[%emt 0:01:47]} 29. Rd1 {[%emt 0:20:25]} Bxf2+ {[%emt 0:02:44]} 30. Qxf2 {[%emt 0:00:25]} Ra1 {[%emt 0:03:49]} 31. Rbd3 {[%emt 0:00:38]} Rxd1+ {[%emt 0:00:45]} 32. Rxd1 {[%emt 0:00:01]} Ra1 {[%emt 0:00:23]} 33. Qd2 {[%emt 0:00:35]} Qb6+ {[%emt 0:02:25]} 34. Kh1 {[%emt 0:02:27]} Qb1 {[%emt 0:02:43]} 0-1

[Event "Fagernes Chess Open 2025"]
[Site "Fagernes"]
[Date "2025.04.17"]
[Round "6.7"]
[White "Brattgjerd, August Minh"]
[Black "Digernes, Mikael"]
[Result "0-1"]
[Annotator "NA RC"]
[ECO "A45"]
[WhiteElo "1845"]
[BlackElo "1781"]
[PlyCount "122"]
[EventDate "2025.04.12"]
[EventCountry "NOR"]
[SourceTitle "playchess.com"]
[Source "ChessBase"]
[SourceQuality "1"]
[TimeControl "40/6000+30:2400+30"]

1. d4 {[%emt 0:01:16]} Nf6 {[%emt 0:00:09]} 2. Bf4 {[%emt 0:00:26]} c5 {[%emt 0:00:21]} 3. c3 {[%emt 0:00:33]} Qb6 {[%emt 0:00:18]} 4. Qb3 {[%emt 0:00:04]} cxd4 {[%emt 0:00:20]} 5. Qxb6 {[%emt 0:00:28]} axb6 {[%emt 0:00:09]} 6. cxd4 {[%emt 0:00:14]} Nc6 {[%emt 0:00:11]} 7. e3 {[%emt 0:02:59]} Nb4 {[%emt 0:00:45]} 8. Kd1 {[%emt 0:01:20]} Ne4 {[%emt 0:08:34]} 9. Nh3 {[%emt 0:02:33]} d5 {[%emt 0:05:27]} 10. Bb5+ {[%emt 0:02:07]} Nc6 {[%emt 0:19:00]} 11. Ke2 {[%emt 0:07:32]} Bd7 {[%emt 0:02:15]} 12. f3 {[%emt 0:02:13]} Nxd4+ {[%emt 0:00:32]} 13. exd4 {[%emt 0:00:57]} Bxb5+ {[%emt 0:00:07]} 14. Kd1 {[%emt 0:00:34]} Nf6 {[%emt 0:01:11]} 15. Nc3 {[%emt 0:00:46]} Bc6 {[%emt 0:01:58]} 16. Nf2 {[%emt 0:03:32]} b5 {[%emt 0:02:42]} 17. Nd3 {[%emt 0:01:33]} e6 {[%emt 0:00:27]} 18. b4 {[%emt 0:01:14]} Nd7 {[%emt 0:04:14]} 19. Kc2 {[%emt 0:11:11]} Nb6 {[%emt 0:07:36]} 20. Rhe1 {[%emt 0:02:23]} Nc4 {[%emt 0:02:54]} 21. a4 {[%emt 0:13:34]} bxa4 {[%emt 0:06:20]} 22. b5 {[%emt 0:01:09]} Bd7 {[%emt 0:17:30]} 23. Nxd5 {[%emt 0:01:42]} Na3+ {[%emt 0:00:21]} 24. Rxa3 {[%emt 0:04:11]} Bxa3 {[%emt 0:00:12]} 25. Nc7+ {[%emt 0:01:44]} Ke7 {[%emt 0:00:07]} 26. Nxa8 {[%emt 0:02:05]} Rxa8 {[%emt 0:00:07]} 27. Ra1 {[%emt 0:07:39]} Bd6 {[%emt 0:01:09]} 28. Bxd6+ {[%emt 0:01:02]} Kxd6 {[%emt 0:00:25]} 29. Nc5 {[%emt 0:02:15]} Bxb5 {[%emt 0:06:51]} 30. Nxb7+ {[%emt 0:00:38]} Kd5 {[%emt 0:00:17]} 31. Kc3 {[%emt 0:01:29]} Rb8 {[%emt 0:01:17]} 32. Nc5 {[%emt 0:04:57]} e5 {[%emt 0:02:27]} 33. Nxa4 {[%emt 0:02:12]} exd4+ {[%emt 0:00:10]} 34. Kd2 {[%emt 0:00:50]} Bc4 {[%emt 0:00:35]} 35. Kc2 {[%emt 0:03:44]} d3+ {[%emt 0:05:05]} 36. Kd2 {[%emt 0:01:26]} Kd4 {[%emt 0:00:54]} 37. Re1 {[%emt 0:01:30]} Bd5 {[%emt 0:02:39]} 38. Ra1 {[%emt 0:06:30]} Ra8 {[%emt 0:02:14]} 39. Ra3 {[%emt 0:02:53]} Bc4 {[%emt 0:00:08]} 40. g3 {[%emt 0:00:44]} Bb5 {[%emt 0:00:07]} 41. Nc3 {[%emt 0:40:17]} Bc6 {[%emt 0:41:17]} 42. Rxa8 {[%emt 0:05:26]} Bxa8 {[%emt 0:00:07]} 43. Nb5+ {[%emt 0:00:10]} Kc5 {[%emt 0:08:08]} 44. Nc7 {[%emt 0:00:54]} Bxf3 {[%emt 0:01:35]} 45. Kxd3 {[%emt 0:00:21]} Bc6 {[%emt 0:01:55]} 46. Na6+ {[%emt 0:03:57]} Kb5 {[%emt 0:00:09]} 47. Nb8 {[%emt 0:00:12]} Be8 {[%emt 0:00:06]} 48. Ke4 {[%emt 0:01:32]} Kb6 {[%emt 0:00:26]} 49. Kd5 {[%emt 0:00:12]} Kb7 {[%emt 0:01:42]} 50. Kd6 {[%emt 0:00:12]} Kxb8 {[%emt 0:00:53]} 51. Ke7 {[%emt 0:00:14]} f5 {[%emt 0:00:22]} 52. Kxe8 {[%emt 0:01:36]} g5 {[%emt 0:00:08]} 53. Kf7 {[%emt 0:00:32]} f4 {[%emt 0:00:06]} 54. gxf4 {[%emt 0:03:16]} gxf4 {[%emt 0:00:10]} 55. h4 {[%emt 0:00:19]} h5 {[%emt 0:00:29]} 56. Kg6 {[%emt 0:00:25]} f3 {[%emt 0:00:06]} 57. Kxh5 {[%emt 0:00:04]} f2 {[%emt 0:00:09]} 58. Kg6 {[%emt 0:00:13]} f1=Q {[%emt 0:00:09]} 59. h5 {[%emt 0:00:03]} Qf8 {[%emt 0:02:11]} 60. Kh7 {[%emt 0:00:24]} Qf6 {[%emt 0:00:17]} 61. h6 {[%emt 0:00:36]} Kc7 {[%emt 0:00:32]} 0-1

[Event "Fagernes Chess Open 2025"]
[Site "Fagernes"]
[Date "2025.04.17"]
[Round "6.8"]
[White "Yilmaz, Kazim"]
[Black "Kuzmenko, Mykhailo"]
[Result "1/2-1/2"]
[Annotator "NA RC"]
[ECO "D02"]
[WhiteElo "1818"]
[BlackElo "1747"]
[PlyCount "97"]
[EventDate "2025.04.12"]
[EventCountry "NOR"]
[SourceTitle "playchess.com"]
[Source "ChessBase"]
[SourceQuality "1"]
[TimeControl "40/6000+30:2400+30"]

1. Nf3 {[%emt 0:00:02]} Nf6 {[%emt 0:00:14]} 2. Nc3 {[%emt 0:00:04]} d5 {[%emt 0:00:23]} 3. d4 {[%emt 0:00:05]} Bf5 {[%emt 0:03:12]} 4. Bf4 {[%emt 0:00:06]} e6 {[%emt 0:00:59]} 5. e3 {[%emt 0:00:07]} Bb4 {[%emt 0:00:25]} 6. Bd3 {[%emt 0:00:15]} Ne4 {[%emt 0:05:38]} 7. Bxe4 {[%emt 0:00:08]} Bxe4 {[%emt 0:00:47]} 8. O-O {[%emt 0:00:08]} Bxc3 {[%emt 0:01:58]} 9. bxc3 {[%emt 0:00:06]} O-O {[%emt 0:00:57]} 10. Rb1 {[%emt 0:00:17]} b6 {[%emt 0:00:29]} 11. Re1 {[%emt 0:00:26]} Bxf3 {[%emt 0:13:32]} 12. Qxf3 {[%emt 0:00:07]} Nc6 {[%emt 0:00:24]} 13. e4 {[%emt 0:00:14]} Rc8 {[%emt 0:02:57]} 14. exd5 {[%emt 0:00:08]} exd5 {[%emt 0:07:31]} 15. Rb5 {[%emt 0:00:44]} Ne7 {[%emt 0:01:32]} 16. Bg5 {[%emt 0:00:32]} f6 {[%emt 0:07:48]} 17. Bh4 {[%emt 0:00:31]} Qd7 {[%emt 0:05:38]} 18. Rbb1 {[%emt 0:01:10]} Ng6 {[%emt 0:01:46]} 19. Bg3 {[%emt 0:00:14]} Rfe8 {[%emt 0:00:54]} 20. h3 {[%emt 0:01:28]} c6 {[%emt 0:02:42]} 21. Qd3 {[%emt 0:00:19]} b5 {[%emt 0:01:33]} 22. Qd2 {[%emt 0:00:26]} Rxe1+ {[%emt 0:03:00]} 23. Rxe1 {[%emt 0:00:05]} Re8 {[%emt 0:00:20]} 24. Re3 {[%emt 0:00:30]} Kf7 {[%emt 0:01:00]} 25. Qe2 {[%emt 0:00:34]} Re7 {[%emt 0:00:40]} 26. Kf1 {[%emt 0:00:19]} Qe8 {[%emt 0:00:50]} 27. Rxe7+ {[%emt 0:00:50]} Qxe7 {[%emt 0:00:04]} 28. Qxe7+ {[%emt 0:00:15]} Nxe7 {[%emt 0:03:16]} 29. Bd6 {[%emt 0:00:29]} Ke6 {[%emt 0:05:09]} 30. Bxe7 {[%emt 0:00:06]} Kxe7 {[%emt 0:00:17]} 31. Ke2 {[%emt 0:00:05]} f5 {[%emt 0:01:00]} 32. f4 {[%emt 0:00:19]} Kf6 {[%emt 0:00:27]} 33. Kf3 {[%emt 0:00:09]} h6 {[%emt 0:02:01]} 34. g3 {[%emt 0:00:40]} g6 {[%emt 0:03:04]} 35. h4 {[%emt 0:00:18]} Ke6 {[%emt 0:01:33]} 36. Ke3 {[%emt 0:00:09]} Kd6 {[%emt 0:01:53]} 37. Kd2 {[%emt 0:00:16]} c5 {[%emt 0:02:00]} 38. a3 {[%emt 0:00:12]} Kc6 {[%emt 0:03:25]} 39. Kc1 {[%emt 0:00:15]} cxd4 {[%emt 0:10:47]} 40. cxd4 {[%emt 0:00:05]} a5 {[%emt 0:00:18]} 41. Kb2 {[%emt 0:40:12]} b4 {[%emt 0:40:29]} 42. a4 {[%emt 0:00:08]} Kd6 {[%emt 0:01:35]} 43. Kb3 {[%emt 0:00:10]} Ke6 {[%emt 0:00:27]} 44. c3 {[%emt 0:00:23]} bxc3 {[%emt 0:00:30]} 45. Kxc3 {[%emt 0:00:06]} Kf6 {[%emt 0:00:24]} 46. Kd3 {[%emt 0:00:07]} g5 {[%emt 0:04:46]} 47. h5 {[%emt 0:00:05]} Kg7 {[%emt 0:01:52]} 48. Ke3 {[%emt 0:00:08]} Kf6 {[%emt 0:00:59]} 49. Kf3 {[%emt 0:00:06]} 1/2-1/2